Cogmind - Beta 13 --- EXPLORER MODE // 2024.04.01 @ 01:09:47 Player: Ergodic Result: Destroyed by 5L-MT7(R) with Subdweller Machine Gun Performance ------------- Evolutions (0) 0 Regions Visited (2) 400 Robots Destroyed (16) 80 Value Destroyed (350) 350 Prototype IDs (4) 80 Alien Tech Used (0) 0 Bonus (0) 0 TOTAL SCORE: 910 Bonus ------- None Cogmind --------- Core Integrity 0/250 Matter 300/300 Energy 100/100 System Corruption 0% Temperature Cool (0) Movement Core (100) Ox1 Location -10/Subcaves Parts ------- > --- POWER (1) -------- (None) > --- PROPULSION (2) --- (None) > --- UTILITY (3) ------ Small Storage Unit Targeting Computer > --- WEAPON (2) ------- (None) > --- INVENTORY (8) ---- Aluminum Leg Aluminum Leg Structural Scanner Beamcaster Light Assault Rifle Grenade Launcher Peak State ------------ > --- POWER ------------ Light Nuclear Core > --- PROPULSION ------- Aluminum Leg Myomer Leg > --- UTILITY ---------- Small Storage Unit Terrain Scanner Targeting Computer > --- WEAPON ----------- Assault Rifle Heavy Assault Rifle > --- INVENTORY -------- Aluminum Leg Aluminum Leg Structural Scanner Beamcaster Light Assault Rifle Grenade Launcher [Rating: 18] Favorites ----------- Power Light Nuclear Core Engine Light Ion Engine Power Core Light Nuclear Core Propulsion Aluminum Leg Leg Aluminum Leg Utility Targeting Computer Device Structural Scanner Storage Small Storage Unit Processor Targeting Computer Protection Light Armor Plating Weapon Assault Rifle Ballistic Gun Assault Rifle Launcher Grenade Launcher Build | -11 -10 -10 ------- Run | Yrd Mat Sub Slots Evolved 1 | . 1 . Power . | . . . Propulsion . | . . . Utility 1 | . 1 . Weapon . | . . . Parts Attached 20 | 7 4 9 Power 2 | 1 1 . Engine 1 | 1 . . Core 1 | . 1 . Reactor . | . . . Propulsion 3 | 2 . 1 Treads . | . . . Leg 3 | 2 . 1 Wheel . | . . . Hover . | . . . Flight . | . . . Utility 8 | 2 3 3 Device 3 | 1 1 1 Storage 2 | . 1 1 Processor 1 | 1 . . Hackware . | . . . Protection 2 | . 1 1 Artifact . | . . . Weapon 7 | 2 . 5 Energy Gun . | . . . Energy Cannon . | . . . Ballistic Gun 6 | 2 . 4 Ballistic Cannon . | . . . Launcher 1 | . . 1 Special Weapon . | . . . Impact Weapon . | . . . Slashing Weapon . | . . . Piercing Weapon . | . . . Special Melee Weapon . | . . . Unidentified Prototypes . | . . . Parts Lost 7 | . . 7 Power 1 | . . 1 Propulsion 2 | . . 2 Utility 2 | . . 2 Weapon 2 | . . 2 Highest Loss Streak 5 | . . 5 To Critical Strikes . | . . . Average Slot Usage (%) 96 | . 99 91 Core 10 | . 10 10 Leg 24 | . 25 24 Device 10 | . 11 7 Storage 8 | . 9 7 Processor 12 | . 12 12 Protection 3 | . 2 4 Ballistic Gun 23 | . 25 20 Naked Turns . | . . . Heaviest Build 26 | 7 14 26 Greatest Support 35 | 20 20 35 Greatest Overweight (x) 1 | . . 1 Average Overweight (x) . | . . . Largest Inventory Capacity 8 | 5 8 8 Average Capacity 7 | 5 7 6 Most Carried 8 | 5 8 8 Average Carried 6 | 2 6 5 Final Capacity 8 | 5 8 8 Final Carried 8 | 4 8 6 Class Distribution -------------------- 100% | Hacker-Mutant Dominant Class ---------------- Hacker-Mutant | -10/Materials Hacker-Mutant | -10/Subcaves Resources | -11 -10 -10 ----------- Run | Yrd Mat Sub Matter Collected 784 | 286 352 146 Remotely . | . . . Salvage Created 502 | 58 278 166 Parts 40 | 5 18 17 Haulers Intercepted . | . . . Recyclers Shooed 1 | . 1 . Parts Field Recycled . | . . . Retrieved Matter . | . . . Parts Self-Destructed . | . . . Prevented . | . . . Kills | -11 -10 -10 ------- Run | Yrd Mat Sub Combat Hostiles Destroyed 11 | 1 6 4 Guns 11 | 1 6 4 Classes Destroyed 8 | 2 5 1 Worker 1 | 1 . . Builder 1 | . 1 . Tunneler 1 | . 1 . Recycler 1 | . 1 . Watcher 1 | . 1 . Swarmer 4 | . 4 . Grunt 3 | 1 2 . Subdweller 4 | . . 4 Best Kill Streak 3 | 1 3 3 Combat Bots Only 3 | 1 2 3 Max Kills in Single Turn 2 | 1 2 1 Gunslinging . | . . . Exploded . | . . . Melee . | . . . Uniques/NPCs Destroyed . | . . . Combat | -11 -10 -10 -------- Run | Yrd Mat Sub Hostile Shots Fired 108 | 1 21 86 Missed 43 | . 12 31 Damage Taken 1054 | 7 59 988 Core 255 | . 5 250 Absorbed by Shields . | . . . Ignored by Resistances 594 | 5 39 550 Core Remaining (%) 100 | 100 . . Volleys Fired 40 | 4 22 14 Largest 2 | 2 2 2 Hottest 43 | 40 40 43 Shots Fired 76 | 8 44 24 Gun 76 | 8 44 24 Cannon . | . . . Launcher . | . . . Special . | . . . Kinetic 76 | 8 44 24 Thermal . | . . . Explosive . | . . . Electromagnetic . | . . . Robot Hit Streak 16 | 4 16 16 Robot Miss Streak 3 | 1 3 1 Penetration Max . | . . . Secondary Targets 2 | . 2 . Max Gunslinging Chain 1 | . 1 . Shots Hit Robots 59 | 6 31 22 Core Hits 28 | 4 15 9 Critical Kills . | . . . Critical Parts Destroyed . | . . . Critical Strikes 1 | . . 1 Destroy 1 | . . 1 Melee Attacks . | . . . Impact . | . . . Slashing . | . . . Piercing . | . . . Sneak Attacks . | . . . Combat Hostiles . | . . . Follow-up Attacks . | . . . Damage Inflicted 652 | 59 339 254 Guns 652 | 59 339 254 Cannons . | . . . Explosions . | . . . Melee . | . . . Ramming . | . . . Kinetic 652 | 59 339 254 Thermal . | . . . Explosive . | . . . Electromagnetic . | . . . Impact . | . . . Slashing . | . . . Piercing . | . . . Highest Corruption . | . . . Average Corruption . | . . . Corruption Purged . | . . . Corruption Blocked . | . . . Overload Shots . | . . . Overflow Damage . | . . . Projectiles . | . . . Explosions . | . . . Melee . | . . . Knockbacks . | . . . Impact . | . . . Kinetic . | . . . Secondary . | . . . Self-Inflicted Damage . | . . . Shots . | . . . Rammed . | . . . Targets Rammed . | . . . Kicked . | . . . Crushed . | . . . Highest Temperature 21 | 6 21 . Average Temperature 5 | 6 5 . Received Heat Transfer 141 | 6 36 99 Siege Activations . | . . . Robots Corrupted . | . . . Combat Hostiles . | . . . Parts Fried . | . . . Impact Corruptions . | . . . Robots Melted . | . . . Combat Hostiles . | . . . Parts Melted . | . . . Heat Transferred . | . . . Parts Sabotaged . | . . . Parts Stolen . | . . . Parts Stripped . | . . . Power Chain Reactions . | . . . Alert | -11 -10 -10 ------- Run | Yrd Mat Sub Peak Influence 159 | 25 159 . Initial 12 | . 12 . Average 38 | 7 41 . Maximum Alert Level . | . . . Low Security (%) 100 | 100 100 . Level 1 . | . . . Level 2 . | . . . Level 3 . | . . . Level 4 . | . . . Level 5 . | . . . High Security . | . . . Max Security . | . . . Squads Dispatched . | . . . Investigation . | . . . Extermination . | . . . Reinforcement . | . . . Assault . | . . . Garrison . | . . . Intercept . | . . . Searches Triggered . | . . . Construction Impeded . | . . . Haulers Reinforced . | . . . Active Scanning Responses . | . . . Cargo Convoy Interrupts . | . . . Stealth | -11 -10 -10 --------- Run | Yrd Mat Sub Distress Signals . | . . . Communications Jammed . | . . . Distress Signals . | . . . Times Spotted 30 | 1 12 17 Peak Tracking Total 9 | 1 3 9 Tactical Retreats . | . . . Traps | -11 -10 -10 ------- Run | Yrd Mat Sub Traps Triggered 1 | . . 1 Indirectly . | . . . Trap Hack Attempts . | . . . Triggered . | . . . Disarmed . | . . . Reprogrammed . | . . . Reused . | . . . Traps Extracted . | . . . Installed . | . . . Triggered . | . . . Machines | -11 -10 -10 ---------- Run | Yrd Mat Sub Machines Disabled . | . . . Max in Single Turn . | . . . Machines Repaired . | . . . Machines Dismantled . | . . . Machines Sabotaged . | . . . Overloaded Fab Kills . | . . . Hacking | -11 -10 -10 --------- Run | Yrd Mat Sub Machines Accessed 8 | . 8 . Terminals 7 | . 7 . Fabricators . | . . . Repair Stations . | . . . Recycling Units 1 | . 1 . Scanalyzers . | . . . Garrison Access . | . . . Total Hacks 21 | . 21 . Successful 18 | . 18 . Failed 3 | . 3 . Catastrophic . | . . . Database Lockouts . | . . . Manual . | . . . Terminals 19 | . 19 . Fabricators . | . . . Repair Stations . | . . . Recycling Units 2 | . 2 . Scanalyzers . | . . . Garrison Access . | . . . Terminal Hacks 16 | . 16 . Record 5 | . 5 . Prototype ID Bank 3 | . 3 . Branch Access Points 1 | . 1 . Emergency Access Points 2 | . 2 . Machine Index 1 | . 1 . Alert Level 1 | . 1 . Maintenance Status 1 | . 1 . Security Status 1 | . 1 . Zone Layout 1 | . 1 . Fabricator Hacks . | . . . Repair Station Hacks . | . . . Recycling Unit Hacks 2 | . 2 . Report Inventory 1 | . 1 . Retrieve Components 1 | . 1 . Scanalyzer . | . . . Garrison Access Hacks . | . . . Unauthorized Hacks . | . . . Terminals . | . . . Fabricators . | . . . Repair Stations . | . . . Recycling Units . | . . . Scanalyzers . | . . . Garrison Access . | . . . Data Cores Recovered . | . . . Used . | . . . Hacking Detections 7 | . 7 . Full Trace Events . | . . . Feedback Events . | . . . Feedback Blocked . | . . . Robot Schematics Acquired . | . . . Robots Built . | . . . Authchips . | . . . Time . | . . . Total Robot Build Rating . | . . . Part Schematics Acquired . | . . . Parts Built . | . . . Authchips . | . . . Time . | . . . Total Part Build Rating . | . . . Parts Repaired . | . . . Time . | . . . Parts Recycled . | . . . Recycled Matter . | . . . Retrieved Matter . | . . . Retrieved Components 9 | . 9 . Parts Scanalyzed . | . . . Part Schematics Acquired . | . . . Parts Damaged . | . . . Bothacking | -11 -10 -10 ------------ Run | Yrd Mat Sub Used RIF Installer . | . . . Robots Hacked . | . . . Non-combat . | . . . Combat . | . . . Robot Hacks Applied . | . . . Relay Couplers Released . | . . . Fabnet Peak Effective % . | . . . Robots Rewired . | . . . Allies Hacked . | . . . Hacks Repelled . | . . . Allies | -11 -10 -10 -------- Run | Yrd Mat Sub Total Allies . | . . . Largest Group . | . . . Highest-Rated Group . | . . . Highest-Rated Ally . | . . . Total Orders . | . . . Ally Attacks . | . . . Total Damage . | . . . Kills . | . . . Allies Corrupted . | . . . Allies Melted . | . . . Intel | -11 -10 -10 ------- Run | Yrd Mat Sub Robot Analysis Total . | . . . Derelict Logs Recovered . | . . . Drone Launches . | . . . Drone Recoveries . | . . . Exploration | -11 -10 -10 ------------- Run | Yrd Mat Sub Turns Passed 2617 | 155 1596 866 Spaces Moved 1290 | 114 599 577 Core 22 | 21 . 1 Treads . | . . . Legs 1268 | 93 599 576 Wheels . | . . . Hover . | . . . Flight . | . . . Fastest Speed 50 | 50 120 100 Average Speed 126 | 107 120 136 Slowest Speed 190 | 120 120 190 Overloaded Moves . | . . . Propulsion Burnouts . | . . . Robots Hopped . | . . . Cave-ins Triggered . | . . . Exploration Rate (%) 37 | 8 68 35 Regions Visited 2 Branch Regions 1 Pre-discovered Areas 1 | . . 1 Known Exits Taken 2 | 1 1 . Unknown Exits Taken . | . . . Scrap Searched . | . . . Spaces Dug . | . . . Terrain Destroyed . | . . . Melee . | . . . Projectile . | . . . AOE . | . . . Terrain Rammed . | . . . Walls Destroyed . | . . . Machines Disabled . | . . . Actions | -11 -10 -10 --------- Run | Yrd Mat Sub Total 2203 | 138 1436 629 Wait 816 | . 804 12 Move 1288 | 113 598 577 Hop . | . . . Pick Up 21 | 9 5 7 Fast Attach 9 | 7 2 . Attach 4 | . 1 3 Detach 3 | . 1 2 Swap 7 | . 1 6 Drop 15 | 5 2 8 Fire 40 | 4 22 14 Melee . | . . . Ram . | . . . Kick . | . . . Crush . | . . . Escape Stasis . | . . . Rewire . | . . . Trap . | . . . Miscellaneous . | . . . Route ------- -11/Scrapyard -10/Materials (discovered 4 exits: *Mat x2 / Min / *Sub) -10/Subcaves (discovered 1 exit: *Mat) History --------- Turn | Location | Event 2 | -11/Scrapyard | Met Revision 17 107 | -11/Scrapyard | Identified exit to Materials 107 | -11/Scrapyard | Discovered exit to Materials (range 8) 156 | -11/Scrapyard | Entered Materials 156 | -10/Materials | Evolved 1 slot: Utility x1 310 | -10/Materials | Build established: Hacker-Mutant 602 | -10/Materials | Identified exit to Materials 602 | -10/Materials | Discovered exit to Materials (range 3) 758 | -10/Materials | Identified exit to Mines 898 | -10/Materials | Discovered exit to Materials (range 7) 1093 | -10/Materials | Identified exit to Subcaves 1093 | -10/Materials | Discovered exit to Subcaves (range 7) 1752 | -10/Materials | Entered Subcaves 2010 | -10/Subcaves | Identified exit to Materials 2010 | -10/Subcaves | Discovered exit to Materials (range 16) 2034 | -10/Subcaves | Ambushed by swarm of Subdwellers 2035 | -10/Subcaves | Ambushed by Subdwellers from Twisted Machinery 2035 | -10/Subcaves | Ambushed by Subdwellers from Twisted Machinery 2035 | -10/Subcaves | Ambushed by Subdwellers from Twisted Machinery 2093 | -10/Subcaves | Shifting Twisted Machinery released Sub. Monowheel 2517 | -10/Subcaves | Ambushed by Subdwellers from Twisted Machinery 2576 | -10/Subcaves | Core integrity fell below 50% 2580 | -10/Subcaves | Ambushed by Subdweller buried in earth 2582 | -10/Subcaves | Learned location of Zion (-7) 2582 | -10/Subcaves | Met a Zionite searching for "candidates" 2602 | -10/Subcaves | Lost 5 parts (1p1n1u2w) 2612 | -10/Subcaves | Core integrity fell below 20% 2618 | -10/Subcaves | Destroyed by 5L-MT7(R) with Subdweller Machine Gun Last Messages --------------- 5L-MT7(R): "ARGHSUB!" JN-WU9(z): "Hey you! It's really dangerous down here, I feel that you could die at any moment. For your health and safety might I suggest a trip to Zion?" World map updated: -7/Zion. UK-999(z) examines a few pieces of the Twisted Machinery. V9-A2O(R) suffers critical hit (Burn). V9-A2O(R) destroyed. O0-8FL(R) destroyed. JN-WU9(z) destroyed. 5L-MT7(R) suffers critical hit (Burn). 5L-MT7(R) affixes Scrap Shield Fragment to Scrap Shield. UK-999(z) suffers critical hit (Destroy). UK-999(z) destroyed. 5L-MT7(R) affixes Scrap Shield Fragment to Scrap Shield. Myomer Leg destroyed. Map ----- +----------------------------------------------------+ | ???????????????????????????????????### ### ?? | | ????????????????????????????????????# #??? | | ??????????????????????????????????### ##?? | | ????????????????????????????????????## #?? | | ?????????????????????????????????????# ### | | ?????????????????????????????????????# # | | ?????????????????????????????????????#" | | ???????????????????????????????#?##### | | ????????????????????????????????##^ ^ | | ????????????????????##??????#####" | | ???????????????????## ??### # " | | ??????????????????? ??# ""# ## | | ??????????????????? ? ##?# | | ???????????????????" ## #??# | | ????????????????? """"" # #### | | ?????????????????? """"# "# # | | ????????????????????# "# ## | | ????????????????????## ## | | ????????????????????# # = # | | ????????????????????# ?# # # ## | | ???????????????????## ## ######### ## | | ??????????????????## "#!; "######## ### | | ?????????????????"#" ""[%## "" "# # | | ????????????????? "" ""!& !####" ### | | ????????????????? ## "##RR##??#"##?## ## | | ???????????????????##??#!@#???" #???# ### | | ????????????????????" *="%""#??# ???# #?# | | ????????????????"" [=" "!#???#???# #### ## | | ???????????????""" ## ="""%""??????## #### ## | | ???????????????""???## &!"]&?????## #?## ## | | ?????????????????????######&"""#???## #### | | ???????????????????????????# ###??## ## | | ????????????????????????????##????# | | ??????????????????????????????????### #### | | ?????????????????????????????#??????###########??? | | ?????????????????????????????????????????#???????? | | ?????????????????????????????????????????????????? | | ???????????????????????????????????????????#?????? | | ?????????????????????????????????????????????????? | | #####????????????????????????????????????????????? | | #" #????????????????????????????????????????????? | | # ##???????????????????????????????????????????? | | ###????????????????????????????????????#????? | | ""###???????????????????????????????????????? | | ##??????????????????????????????????#?#?? | | ### #??????????????????????????#???????#?#?? | | #?# #??????????????????????????????????????? | | ### ####???######?????????????????????????????? | | ####??## ###??????????????????????##???? | | ###### #####?????######?????## #??## | +----------------------------------------------------+ Best States ------------- Heat Dissipation 25 Energy Generation 14 Energy Capacity 160 Matter Stores 300 Matter Capacity 300 Sight Range 16 Terrain Scan Range 14 Terrain Scan Density 10 Armor Coverage 800 Resistance: KI 35 Resistance: TH 35 Resistance: EX 35 Resistance: EM 35 Resistance: I 35 Resistance: S 35 Resistance: P 35 Evasion (%) 55 Targeting Accuracy 5 Offensive Hacking 20 Item Schematics ----------------- None Robot Schematics ------------------ None Fabricated ------------ Nothing Alien Tech Used ----------------- None Achievements -------------- None Challenges ------------ None Game ------ Seed SignalTiamatRedirector Manual? 0 Play Time 00:28:15 Cumulative 4.5 hours Start 2024.04.01 @ 00:41:03 End 2024.04.01 @ 01:09:47 Sessions 1 Manual Loads 0 Difficulty Explorer Special Mode None Game No. 2 Rogue 0 Adventurer 0 Explorer 2 Win Type - Total 0 Types 0/0/0/0/0/0/0/0/0 Lore% 5 Gallery% 6 Achievement% 7 Wizard Run 0 Options --------- Layout 1 ASCII 0 Keyboard 0 Movement Arrows Keybinds 0 Fullscreen 1 Font 24/Terminus Map View 50x35 Zoom Use 0% Tactical HUD 0 Map Filters NONE Filters NONE Steam 1 RUN: 10613d98-a01c-4c8f-b107-04ca93a59e3a